fUST/lending_fUST_20250627
["ID","MTS","AMOUNT","RATE_DAILY","PERIOD"]
[368049078,1751007041967,-598.58,0.00019452,2]
[368049081,1751007041976,-460.0,0.00019452,2]
[368049083,1751007041986,-460.0,0.00019452,2]
[368049085,1751007041995,-467.72558827,0.00019452,2]
[368049087,1751007042006,-2622.05,0.00019452,2]
[368049089,1751007042015,-2189.0,0.00019452,2]
[368049091,1751007042025,-460.0,0.00019452,2]
[368049093,1751007042034,-711.42,0.00019452,2]
[368049095,1751007042044,-460.0,0.00019452,2]
[368049097,1751007042053,-892.43,0.00019452,2]
[368049099,1751007042063,-899.03,0.00019452,2]
[368049101,1751007042072,-460.0,0.00019452,2]
[368049103,1751007042081,-460.0,0.00019452,2]
[368049105,1751007042091,-460.0,0.00019452,2]
[368049107,1751007042102,-2557.0,0.00019452,2]
[368049108,1751007042111,-1675.66,0.00019452,2]
[368049109,1751007042120,-460.0,0.00019452,2]
[368049110,1751007042129,-249.50034427,0.00019452,2]
[368049111,1751007042139,-460.0,0.00019452,2]
[368049112,1751007042148,-460.0,0.00019452,2]
[368049113,1751007042159,-460.0,0.00019452,2]
[368049114,1751007042168,-460.0,0.00019452,2]
[368049115,1751007042178,-1066.54,0.00019452,2]
[368049116,1751007042188,-2069.84,0.00019452,2]
[368049117,1751007042197,-1258.34,0.00019452,2]
[368049118,1751007042207,-754.06,0.00019452,2]
[368049119,1751007042216,-470.35559067,0.00019452,2]
[368049120,1751007042226,-1894.49,0.00019452,2]
[368049122,1751007042235,-460.0,0.00019452,2]
[368049123,1751007042245,-460.0,0.00019452,2]
[368049124,1751007042254,-460.0,0.00019452,2]
[368049125,1751007042264,-151.98541342,0.00019479,2]
[368049126,1751007042273,-151.0,0.00019479,2]
[368049128,1751007042283,-151.0,0.00019479,2]
[368049130,1751007042292,-151.0,0.00019479,2]
[368049132,1751007042301,-151.0,0.00019506,2]
[368049134,1751007042310,-151.0,0.00019506,2]
[368049136,1751007042319,-151.0,0.00019506,2]
[368049138,1751007042328,-198.0,0.00019534,2]
[368049140,1751007042337,-198.0,0.00019534,2]
[368049142,1751007042346,-198.0,0.00019534,2]
[368049143,1751007042355,-1943.62550975,0.00019626,2]
[368049145,1751007042365,-500.0,0.00019692,2]
[368049148,1751007042374,-500.0,0.00019692,2]
[368049150,1751007042384,-500.0,0.00019692,2]
[368049152,1751007042393,-500.0,0.00019723,2]
[368049155,1751007042401,-500.0,0.00019723,2]
[368049158,1751007042411,-500.0,0.00019723,2]
[368049162,1751007042420,-500.0,0.00019723,2]
[368049165,1751007042430,-500.0,0.00019723,2]
[368049168,1751007042439,-615.03,0.00019725,2]
[368049171,1751007042449,-615.03,0.00019725,2]
[368049173,1751007042458,-615.03,0.00019725,2]
[368049175,1751007042468,-460.0,0.00019726,2]
[368049177,1751007042477,-223.9003636,0.00019726,2]
[368049179,1751007042487,-460.0,0.00019726,2]
[368049181,1751007042496,-460.0,0.00019726,2]
[368049183,1751007042505,-397.31847513,0.00019726,2]
[368049185,1751007042515,-603.28,0.00019726,2]
[368049187,1751007042524,-460.0,0.00019726,2]
[368049189,1751007042533,-460.0,0.00019726,2]
[368049191,1751007042543,-460.0,0.00019726,2]
[368049193,1751007042553,-460.0,0.00019726,2]
[368049195,1751007042563,-460.0,0.00019726,2]
[368049197,1751007042572,-460.0,0.00019726,2]
[368049199,1751007042582,-576.52902155,0.00019726,2]
[368049201,1751007042591,-807.08,0.00019726,2]
[368049203,1751007042602,-460.0,0.00019726,2]
[368049205,1751007042612,-460.0,0.00019726,2]
[368049207,1751007042622,-460.0,0.00019726,2]
[368049209,1751007042631,-460.0,0.00019726,2]
[368049211,1751007042640,-857.15,0.00019726,2]
[368049213,1751007042650,-460.0,0.00019726,2]
[368049215,1751007042661,-460.0,0.00019726,2]
[368049217,1751007042671,-460.0,0.00019726,2]
[368049219,1751007042680,-460.0,0.00019726,2]
[368049221,1751007042690,-460.0,0.00019726,2]
[368049223,1751007042700,-460.0,0.00019726,2]
[368049225,1751007042710,-460.0,0.00019726,2]
[368049227,1751007042720,-460.0,0.00019726,2]
[368049229,1751007042734,-460.0,0.00019726,2]
[368049231,1751007042744,-460.0,0.00019726,2]
[368049233,1751007042754,-460.0,0.00019726,2]
[368049235,1751007042763,-546.15,0.00019726,2]
[368049237,1751007042772,-460.0,0.00019726,2]
[368049239,1751007042781,-777.34,0.00019726,2]
[368049241,1751007042791,-460.0,0.00019726,2]
[368049243,1751007042801,-460.0,0.00019726,2]
[368049245,1751007042810,-460.0,0.00019726,2]
[368049247,1751007042820,-571.21785384,0.00019726,2]
[368049249,1751007042829,-460.0,0.00019726,2]
[368049251,1751007042838,-421.05,0.00019726,2]
[368049253,1751007042848,-536.62,0.00019726,2]
[368049255,1751007042858,-460.0,0.00019726,2]
[368049257,1751007042867,-514.59,0.00019726,2]
[368049259,1751007042876,-460.0,0.00019726,2]
[368049261,1751007042886,-460.0,0.00019726,2]
[368049263,1751007042895,-460.0,0.00019726,2]
[368049266,1751007042914,-460.0,0.00019726,2]
[368049268,1751007042926,-470.77,0.00019726,2]
[368049270,1751007042935,-353.89793093,0.00019726,2]
[368049272,1751007042945,-2319.96,0.00019726,2]
[368049274,1751007042955,-2216.81,0.00019726,2]
[368049276,1751007042965,-509.96,0.00019726,2]
[368049278,1751007042975,-818.99,0.00019726,2]
[368049280,1751007042984,-460.0,0.00019726,2]
[368049282,1751007042994,-460.0,0.00019726,2]
[368049284,1751007043004,-460.0,0.00019726,2]
[368049286,1751007043014,-566.19,0.00019726,2]
[368049288,1751007043023,-460.0,0.00019726,2]
[368049290,1751007043033,-460.0,0.00019726,2]
[368049292,1751007043043,-460.0,0.00019726,2]
[368049294,1751007043052,-460.0,0.00019726,2]
[368049296,1751007043063,-1074.2,0.00019726,2]
[368049298,1751007043072,-460.0,0.00019726,2]
[368049300,1751007043082,-630.23,0.00019726,2]
[368049302,1751007043092,-749.42,0.00019726,2]
[368049304,1751007043102,-3942.62,0.00019726,2]
[368049306,1751007043112,-460.0,0.00019726,2]
[368049309,1751007043122,-2701.14,0.00019726,2]
[368049311,1751007043131,-460.0,0.00019726,2]
[368049313,1751007043141,-460.0,0.00019726,2]
[368049315,1751007043151,-460.0,0.00019726,2]
[368049317,1751007043161,-460.0,0.00019726,2]
[368049319,1751007043171,-460.0,0.00019726,2]
[368049321,1751007043182,-923.66,0.00019726,2]
[368049323,1751007043192,-460.0,0.00019726,2]
[368049325,1751007043202,-779.98,0.00019726,2]
[368049327,1751007043211,-460.0,0.00019726,2]
[368049329,1751007043221,-244.48765915,0.00019726,2]
[368049331,1751007043231,-657.61,0.00019726,2]
[368049333,1751007043240,-460.0,0.00019726,2]
[368049335,1751007043252,-460.0,0.00019726,2]
[368049337,1751007043262,-460.0,0.00019726,2]
[368049339,1751007043272,-5406.16,0.00019726,2]
[368049341,1751007043281,-460.0,0.00019726,2]
[368049343,1751007043290,-460.0,0.00019726,2]
[368049345,1751007043300,-1287.6,0.00019726,2]
[368049347,1751007043310,-464.16,0.00019726,2]
[368049349,1751007043319,-473.28,0.00019726,2]
[368049351,1751007043329,-460.0,0.00019726,2]
[368049353,1751007043339,-2741.89,0.00019726,2]
[368049355,1751007043348,-232.5437507,0.00019726,2]
[368049357,1751007043358,-484.63846589,0.00019726,2]
[368049359,1751007043368,-807.09,0.00019726,2]
[368049361,1751007043378,-460.0,0.00019726,2]
[368049363,1751007043388,-1429.98,0.00019726,2]
[368049365,1751007043398,-643.67,0.00019726,2]
[368049367,1751007043408,-795.16,0.00019726,2]
[368049369,1751007043417,-598.58,0.00019726,2]
[368049371,1751007043427,-460.0,0.00019726,2]
[368049373,1751007043436,-267.5,0.00019726,2]
[368049375,1751007043446,-2622.05,0.00019726,2]
[368049377,1751007043456,-2189.0,0.00019726,2]
[368049379,1751007043466,-711.42,0.00019726,2]
[368049381,1751007043476,-321.84768457,0.00019726,2]
[368049383,1751007043485,-460.0,0.00019726,2]
[368049385,1751007043495,-892.43,0.00019726,2]
[368049387,1751007043505,-899.03,0.00019726,2]
[368049389,1751007043514,-460.0,0.00019726,2]
[368049391,1751007043524,-2557.0,0.00019726,2]
[368049393,1751007043533,-1675.66,0.00019726,2]
[368049395,1751007043543,-460.0,0.00019726,2]
[368049397,1751007043552,-460.0,0.00019726,2]
[368049399,1751007043561,-460.0,0.00019726,2]
[368049401,1751007043571,-460.0,0.00019726,2]
[368049403,1751007043580,-460.0,0.00019726,2]
[368049405,1751007043590,-1066.54,0.00019726,2]
[368049407,1751007043599,-2069.84,0.00019726,2]
[368049409,1751007043609,-1258.34,0.00019726,2]
[368049411,1751007043619,-754.06,0.00019726,2]
[368049413,1751007043628,-1894.49,0.00019726,2]
[368049415,1751007043638,-460.0,0.00019726,2]
[368049417,1751007043647,-460.0,0.00019726,2]
[368049419,1751007043657,-500.0,0.00019764,2]
[368049421,1751007043666,-500.0,0.00019764,2]
[368049423,1751007043676,-502.55043655,0.00019764,2]
[368049425,1751007043686,-500.0,0.0001979,2]
[368049427,1751007043696,-500.0,0.0001979,2]
[368049429,1751007043705,-501.00720285,0.0001982,2]
[368049431,1751007043714,-500.0,0.0001982,2]
[368049433,1751007043725,-506.63485112,0.0001982,2]
[368049435,1751007043738,-615.03,0.00019829,2]
[368049437,1751007043748,-956.41351271,0.00019829,2]
[368049439,1751007043758,-500.0,0.00019864,2]
[368049441,1751007043766,-500.0,0.00019864,2]
[368049443,1751007043777,-398.33270411,0.00019956,2]
[368049445,1751007043787,-615.03,0.00019999,2]
[368049447,1751007043796,-615.03,0.00019999,2]
[368049449,1751007043809,-615.03,0.00019999,2]
[368049451,1751007043819,-460.0,0.0002,2]
[368049453,1751007043829,-460.0,0.0002,2]
[368049455,1751007043839,-327.13,0.0002,2]
[368049457,1751007043848,-603.28,0.0002,2]
[368049459,1751007043857,-460.0,0.0002,2]
[368049460,1751007043867,-334.45256585,0.0002,2]
[368049461,1751007043876,-460.0,0.0002,2]
[368049462,1751007043886,-460.0,0.0002,2]
[368049463,1751007043895,-807.08,0.0002,2]
[368049465,1751007043905,-460.0,0.0002,2]
[368049467,1751007043914,-460.0,0.0002,2]
[368049469,1751007043923,-460.0,0.0002,2]
[368049470,1751007043933,-857.15,0.0002,2]
[368049472,1751007043942,-460.0,0.0002,2]
[368049493,1751007044132,-539.98,0.0002,2]
[368049496,1751007044142,-460.0,0.0002,2]
[368049498,1751007044152,-246.14932496,0.0002,2]
[368049500,1751007044161,-460.0,0.0002,2]
[368049502,1751007044170,-460.0,0.0002,2]
[368049503,1751007044179,-460.0,0.0002,2]
[368049505,1751007044188,-460.0,0.0002,2]
[368049507,1751007044196,-460.0,0.0002,2]
[368049509,1751007044205,-546.15,0.0002,2]
[368049511,1751007044215,-460.0,0.0002,2]
[368049513,1751007044224,-777.34,0.0002,2]
[368049515,1751007044233,-167.41,0.0002,2]
[368049517,1751007044243,-460.0,0.0002,2]
[368049520,1751007044252,-460.0,0.0002,2]
[368049522,1751007044261,-460.0,0.0002,2]
[368049523,1751007044270,-536.62,0.0002,2]
[368049525,1751007044280,-460.0,0.0002,2]
[368049527,1751007044289,-514.59,0.0002,2]
[368049529,1751007044299,-460.0,0.0002,2]
[368049531,1751007044308,-460.0,0.0002,2]
[368049533,1751007044317,-460.0,0.0002,2]
[368049535,1751007044326,-460.0,0.0002,2]
[368049537,1751007044335,-470.77,0.0002,2]
[368049539,1751007044344,-2319.96,0.0002,2]
[368049541,1751007044355,-2216.81,0.0002,2]
[368049543,1751007044364,-509.96,0.0002,2]
[368049545,1751007044374,-818.99,0.0002,2]
[368049547,1751007044383,-460.0,0.0002,2]
[368049549,1751007044393,-460.0,0.0002,2]
[368049551,1751007044402,-566.19,0.0002,2]
[368049553,1751007044411,-460.0,0.0002,2]
[368049555,1751007044421,-460.0,0.0002,2]
[368049557,1751007044431,-460.0,0.0002,2]
[368049558,1751007044440,-460.0,0.0002,2]
[368049559,1751007044450,-460.0,0.0002,2]
[368049560,1751007044459,-1074.2,0.0002,2]
[368049561,1751007044468,-630.23,0.0002,2]
[368049562,1751007044478,-749.42,0.0002,2]
[368049563,1751007044487,-3942.62,0.0002,2]
[368049564,1751007044496,-2701.14,0.0002,2]
[368049565,1751007044506,-460.0,0.0002,2]
[368049566,1751007044515,-346.40532358,0.0002,2]
[368049567,1751007044525,-460.0,0.0002,2]
[368049568,1751007044534,-460.0,0.0002,2]
[368049569,1751007044543,-923.66,0.0002,2]
[368049570,1751007044555,-460.0,0.0002,2]
[368049571,1751007044564,-779.98,0.0002,2]
[368049572,1751007044573,-460.0,0.0002,2]
[368049573,1751007044583,-657.61,0.0002,2]
[368049574,1751007044592,-460.0,0.0002,2]
[368049575,1751007044602,-460.0,0.0002,2]
[368049576,1751007044611,-460.0,0.0002,2]
[368049577,1751007044621,-5406.16,0.0002,2]
[368049578,1751007044630,-460.0,0.0002,2]
[368049579,1751007044639,-460.0,0.0002,2]
[368049580,1751007044649,-1287.6,0.0002,2]
[368049581,1751007044658,-464.16,0.0002,2]
[368049582,1751007044667,-473.28,0.0002,2]
[368049583,1751007044677,-2741.89,0.0002,2]
[368049584,1751007044687,-807.09,0.0002,2]
[368049585,1751007044696,-460.0,0.0002,2]
[368049586,1751007044705,-1429.98,0.0002,2]
[368049587,1751007044715,-643.67,0.0002,2]
[368049588,1751007044726,-795.16,0.0002,2]
[368049589,1751007044738,-598.58,0.0002,2]
[368049590,1751007044747,-460.0,0.0002,2]
[368049591,1751007044756,-2622.05,0.0002,2]
[368049592,1751007044766,-2189.0,0.0002,2]
[368049593,1751007044775,-711.42,0.0002,2]
[368049594,1751007044784,-460.0,0.0002,2]
[368049595,1751007044794,-892.43,0.0002,2]
[368049596,1751007044804,-899.03,0.0002,2]
[368049597,1751007044814,-168.04416856,0.0002,2]
[368049598,1751007044825,-2557.0,0.0002,2]
[368049599,1751007044835,-460.0,0.0002,2]
[368049600,1751007044845,-1675.66,0.0002,2]
[368049601,1751007044855,-460.0,0.0002,2]
[368049602,1751007044864,-500.0,0.0002,2]
[368049604,1751007044874,-460.0,0.0002,2]
[368049606,1751007044883,-460.0,0.0002,2]
[368049607,1751007044893,-1066.54,0.0002,2]
[368049608,1751007044902,-2069.84,0.0002,2]
[368049609,1751007044911,-1258.34,0.0002,2]
[368049610,1751007044921,-754.06,0.0002,2]
[368049611,1751007044931,-1894.49,0.0002,2]
[368049612,1751007044941,-460.0,0.0002,2]
[368049613,1751007044951,-460.0,0.0002,2]
[368049614,1751007044960,-753.0,0.00020048,2]
[368049615,1751007044969,-1943.62550974,0.00020195,2]
[368049616,1751007044979,-370.0274796,0.00020219,2]
[368049617,1751007044987,-500.55681391,0.0002024,2]
[368049618,1751007044997,-214.91804724,0.00020251,2]
[368049619,1751007045007,-160.0,0.00020251,2]
[368049620,1751007045017,-230.26210603,0.00020251,2]
[368049621,1751007045026,-213.75309343,0.00020251,2]
[368049622,1751007045036,-160.0,0.00020251,2]
[368049623,1751007045045,-847.04181546,0.00020251,2]
[368049624,1751007045054,-836.98798914,0.00020251,2]
[368049625,1751007045064,-1000.0,0.00020271,2]
[368049626,1751007045074,-517.33332786,0.00020271,2]
[368049627,1751007045083,-1000.0,0.00020271,2]
[368049628,1751007045092,-1000.0,0.00020271,2]
[368049629,1751007045102,-615.03,0.00020272,2]
[368049630,1751007045111,-615.03,0.00020272,2]
[368049631,1751007045120,-615.03,0.00020272,2]
[368049632,1751007045129,-615.03,0.00020272,2]
[368049633,1751007045138,-615.03,0.00020272,2]
[368049634,1751007045148,-615.1023476,0.00020272,2]
[368049635,1751007045157,-602.15458354,0.00020273,2]
[368049636,1751007045167,-460.0,0.00020273,2]
[368049637,1751007045177,-603.28,0.00020273,2]
[368049638,1751007045186,-460.0,0.00020273,2]
[368049639,1751007045195,-460.0,0.00020273,2]
[368049640,1751007045204,-807.08,0.00020273,2]
[368049641,1751007045214,-460.0,0.00020273,2]
[368049642,1751007045223,-460.0,0.00020273,2]
[368049643,1751007045232,-460.0,0.00020273,2]
[368049644,1751007045242,-857.15,0.00020273,2]
[368049645,1751007045252,-460.0,0.00020273,2]
[368049646,1751007045261,-460.0,0.00020273,2]
[368049647,1751007045270,-460.0,0.00020273,2]
[368049648,1751007045280,-460.0,0.00020273,2]
[368049649,1751007045289,-460.0,0.00020273,2]
[368049650,1751007045299,-460.0,0.00020273,2]
[368049651,1751007045308,-546.15,0.00020273,2]
[368049652,1751007045317,-460.0,0.00020273,2]
[368049653,1751007045326,-777.34,0.00020273,2]
[368049654,1751007045337,-502.76592247,0.00020273,2]
[368049655,1751007045346,-553.95090805,0.00020273,2]
[368049656,1751007045357,-460.0,0.00020273,2]
[368049657,1751007045366,-536.62,0.00020273,2]
[368049658,1751007045375,-460.0,0.00020273,2]
[368049659,1751007045385,-514.59,0.00020273,2]
[368049660,1751007045394,-460.0,0.00020273,2]
[368049661,1751007045403,-460.0,0.00020273,2]
[368049662,1751007045415,-460.0,0.00020273,2]
[368049663,1751007045425,-460.0,0.00020273,2]
[368049664,1751007045437,-470.77,0.00020273,2]
[368049665,1751007045449,-2319.96,0.00020273,2]
[368049666,1751007045458,-2216.81,0.00020273,2]
[368049667,1751007045468,-509.96,0.00020273,2]
[368049668,1751007045477,-818.99,0.00020273,2]
[368049669,1751007045486,-460.0,0.00020273,2]
[368049670,1751007045495,-566.19,0.00020273,2]
[368049671,1751007045505,-460.0,0.00020273,2]
[368049672,1751007045514,-460.0,0.00020273,2]
[368049673,1751007045523,-460.0,0.00020273,2]
[368049674,1751007045532,-460.0,0.00020273,2]
[368049675,1751007045542,-460.0,0.00020273,2]
[368049676,1751007045552,-1074.2,0.00020273,2]
[368049677,1751007045562,-630.23,0.00020273,2]
[368049678,1751007045571,-749.42,0.00020273,2]
[368049679,1751007045581,-3942.62,0.00020273,2]
[368049680,1751007045591,-2701.14,0.00020273,2]
[368049681,1751007045600,-460.0,0.00020273,2]
[368049682,1751007045610,-460.0,0.00020273,2]
[368049683,1751007045620,-923.66,0.00020273,2]
[368049684,1751007045629,-460.0,0.00020273,2]
[368049686,1751007045639,-779.98,0.00020273,2]
[368049687,1751007045648,-460.0,0.00020273,2]
[368049688,1751007045659,-657.61,0.00020273,2]
[368049689,1751007045668,-460.0,0.00020273,2]
[368049690,1751007045678,-460.0,0.00020273,2]
[368049691,1751007045688,-5406.16,0.00020273,2]
[368049692,1751007045699,-460.0,0.00020273,2]
[368049693,1751007045709,-460.0,0.00020273,2]
[368049694,1751007045719,-1287.6,0.00020273,2]
[368049695,1751007045731,-473.28,0.00020273,2]
[368049696,1751007045741,-464.16,0.00020273,2]
[368049697,1751007045751,-2741.89,0.00020273,2]
[368049698,1751007045760,-807.09,0.00020273,2]
[368049699,1751007045770,-460.0,0.00020273,2]
[368049700,1751007045781,-1429.98,0.00020273,2]
[368049701,1751007045791,-643.67,0.00020273,2]
[368049702,1751007045801,-795.16,0.00020273,2]
[368049703,1751007045811,-598.58,0.00020273,2]
[368049704,1751007045820,-460.0,0.00020273,2]
[368049705,1751007045830,-2622.05,0.00020273,2]
[368049706,1751007045839,-2189.0,0.00020273,2]
[368049707,1751007045850,-711.42,0.00020273,2]
[368049708,1751007045859,-460.0,0.00020273,2]
[368049709,1751007045869,-899.03,0.00020273,2]
[368049710,1751007045878,-892.43,0.00020273,2]
[368049711,1751007045887,-2557.0,0.00020273,2]
[368049713,1751007045897,-460.0,0.00020273,2]
[368049714,1751007045906,-1675.66,0.00020273,2]
[368049715,1751007045915,-460.0,0.00020273,2]
[368049716,1751007045925,-460.0,0.00020273,2]
[368049717,1751007045934,-1066.54,0.00020273,2]
[368049718,1751007045944,-2069.84,0.00020273,2]
[368049719,1751007045954,-1258.34,0.00020273,2]
[368049720,1751007045964,-754.06,0.00020273,2]
[368049721,1751007045974,-1894.49,0.00020273,2]
[368049722,1751007045983,-460.0,0.00020273,2]
[368049723,1751007045992,-460.0,0.00020273,2]
[368049724,1751007046002,-731.804695,0.00020274,2]
[368049725,1751007046011,-753.0,0.00020291,2]
[368049726,1751007046021,-160.0,0.00020292,2]
[368049727,1751007046030,-160.0,0.00020292,2]
[368049728,1751007046039,-12562.41216491,0.00020293,2]
[368049729,1751007046049,-1000.0,0.00020312,2]
[368049730,1751007046060,-1000.0,0.00020312,2]
[368049731,1751007046070,-1000.0,0.00020338,2]
[368049732,1751007046079,-1000.0,0.00020338,2]
[368049733,1751007046089,-300.56217115,0.00020401,2]
[368049734,1751007046098,-235.69525341,0.00020412,2]
[368049735,1751007046107,-500.0,0.00020412,2]
[368049736,1751007046118,-151.0,0.000205,4]
[368049737,1751007046128,-603.28,0.00020547,2]
[368049738,1751007046138,-460.0,0.00020547,2]
[368049739,1751007046148,-460.0,0.00020547,2]
[368049740,1751007046159,-807.08,0.00020547,2]
[368049741,1751007046168,-460.0,0.00020547,2]
[368049742,1751007046177,-447.95191384,0.00020547,2]
[368049743,1751007046187,-460.0,0.00020547,2]
[368049744,1751007046196,-857.15,0.00020547,2]
[368049745,1751007046206,-559.57,0.00020547,2]
[368049746,1751007046215,-429.5,0.00020547,2]
[368049747,1751007046224,-460.0,0.00020547,2]
[368049748,1751007046234,-460.0,0.00020547,2]
[368049749,1751007046243,-460.0,0.00020547,2]
[368049750,1751007046253,-460.0,0.00020547,2]
[368049751,1751007046262,-546.15,0.00020547,2]
[368049752,1751007046271,-460.0,0.00020547,2]
[368049753,1751007046280,-777.34,0.00020547,2]
[368049754,1751007046289,-460.0,0.00020547,2]
[368049755,1751007046299,-536.62,0.00020547,2]
[368049756,1751007046308,-460.0,0.00020547,2]
[368049757,1751007046318,-514.59,0.00020547,2]
[368049758,1751007046327,-460.0,0.00020547,2]
[368049759,1751007046336,-460.0,0.00020547,2]
[368049760,1751007046345,-460.0,0.00020547,2]
[368049761,1751007046355,-470.77,0.00020547,2]
[368049762,1751007046365,-2319.96,0.00020547,2]
[368049763,1751007046374,-2216.81,0.00020547,2]
[368049764,1751007046384,-509.96,0.00020547,2]
[368049765,1751007046393,-818.99,0.00020547,2]
[368049766,1751007046402,-460.0,0.00020547,2]
[368049767,1751007046412,-460.0,0.00020547,2]
[368049768,1751007046422,-566.19,0.00020547,2]
[368049769,1751007046431,-156.99534255,0.00020547,2]
[368049770,1751007046439,-280.76,0.00020547,2]
[368049771,1751007046448,-460.0,0.00020547,2]
[368049772,1751007046458,-1074.2,0.00020547,2]
[368049773,1751007046468,-630.23,0.00020547,2]
[368049774,1751007046477,-749.42,0.00020547,2]
[368049775,1751007046486,-3942.62,0.00020547,2]
[368049776,1751007046495,-2701.14,0.00020547,2]
[368049777,1751007046504,-314.76,0.00020547,2]
[368049778,1751007046514,-460.0,0.00020547,2]
[368049779,1751007046524,-923.66,0.00020547,2]
[368049780,1751007046533,-460.0,0.00020547,2]
[368049781,1751007046542,-779.98,0.00020547,2]
[368049782,1751007046551,-460.0,0.00020547,2]
[368049783,1751007046560,-657.61,0.00020547,2]
[368049784,1751007046571,-460.0,0.00020547,2]
[368049785,1751007046581,-460.0,0.00020547,2]
[368049786,1751007046591,-5406.16,0.00020547,2]
[368049787,1751007046600,-460.0,0.00020547,2]
[368049788,1751007046610,-1287.6,0.00020547,2]
[368049789,1751007046619,-473.28,0.00020547,2]
[368049790,1751007046630,-464.16,0.00020547,2]
[368049791,1751007046640,-2741.89,0.00020547,2]
[368049792,1751007046650,-807.09,0.00020547,2]
[368049793,1751007046661,-1429.98,0.00020547,2]
[368049794,1751007046671,-643.67,0.00020547,2]
[368049795,1751007046681,-795.16,0.00020547,2]
[368049796,1751007046690,-598.58,0.00020547,2]
[368049797,1751007046699,-460.0,0.00020547,2]
[368049798,1751007046708,-2622.05,0.00020547,2]
[368049799,1751007046718,-2189.0,0.00020547,2]
[368049800,1751007046729,-711.42,0.00020547,2]
[368049801,1751007046738,-460.0,0.00020547,2]
[368049802,1751007046748,-899.03,0.00020547,2]
[368049803,1751007046757,-892.43,0.00020547,2]
[368049804,1751007046767,-2557.0,0.00020547,2]
[368049805,1751007046777,-460.0,0.00020547,2]
[368049806,1751007046787,-1675.66,0.00020547,2]
[368049807,1751007046796,-460.0,0.00020547,2]
[368049808,1751007046806,-460.0,0.00020547,2]
[368049809,1751007046816,-1066.54,0.00020547,2]
[368049810,1751007046826,-2069.84,0.00020547,2]
[368049811,1751007046835,-754.06,0.00020547,2]
[368049812,1751007046844,-1258.34,0.00020547,2]
[368049813,1751007046853,-1894.49,0.00020547,2]
[368049814,1751007046863,-417.92041718,0.00020547,2]
[368049815,1751007046872,-5123.45,0.000206,2]
[368049816,1751007046882,-180.0,0.00020646,2]
[368049817,1751007046891,-151.0,0.000207,3]
[368049818,1751007046900,-1943.62550974,0.00020763,2]
[368049819,1751007046909,-500.0,0.00020819,2]
[368049820,1751007046919,-1500.0,0.00020819,2]
[368049821,1751007046929,-603.28,0.00020821,2]
[368049822,1751007046938,-460.0,0.00020821,2]
[368049823,1751007046947,-460.0,0.00020821,2]
[368049824,1751007046957,-807.08,0.00020821,2]